[Event "Titled Tuesday Blitz March 28 Late 2023"]
[White "Golubev, Mikhail"]
[Black "Dubreuil, Julien"]
[WhiteFideId "14100983"]
[BlackFideId "621285"]
[WhiteElo "2374"]
[BlackElo "2264"]
[Result "0-1"]
[Round "02"]
[TimeControl "180+2"]
[Date "2023.03.28"]
[WhiteClock "0:00:03"]
[BlackClock "0:00:08"]

1. e4 {[%clk 0:03:00]}  e5 {[%clk 0:00:24]} 2. Nf3 {[%clk 0:02:56]}  Nc6 {[%clk 0:00:24]} 3. Bc4 {[%clk 0:02:50]}  Nf6 {[%clk 0:00:24]} 4. Ng5 {[%clk 0:02:50]}  d5 {[%clk 0:00:22]} 5. exd5 {[%clk 0:02:49]}  Na5 {[%clk 0:00:22]} 6. Bb5+ {[%clk 0:02:48]}  c6 {[%clk 0:00:23]} 7. dxc6 {[%clk 0:02:48]}  bxc6 {[%clk 0:00:24]} 8. Bd3 {[%clk 0:02:48]}  Nd5 {[%clk 0:00:20]} 9. Nf3 {[%clk 0:02:39]}  Nf4 {[%clk 0:00:19]} 10. O-O {[%clk 0:02:05]}  Nxd3 {[%clk 0:00:19]} 11. cxd3 {[%clk 0:02:04]}  Bc5 {[%clk 0:00:19]} 12. d4 {[%clk 0:01:42]}  exd4 {[%clk 0:00:18]} 13. Re1+ {[%clk 0:01:40]}  Be6 {[%clk 0:00:18]} 14. d3 {[%clk 0:01:37]}  O-O {[%clk 0:00:17]} 15. Nbd2 {[%clk 0:01:22]}  Bd5 {[%clk 0:00:17]} 16. Ne4 {[%clk 0:01:15]}  Be7 {[%clk 0:00:17]} 17. Bd2 {[%clk 0:01:06]}  c5 {[%clk 0:00:17]} 18. Rc1 {[%clk 0:00:58]}  Rc8 {[%clk 0:00:14]} 19. b3 {[%clk 0:00:49]}  Nc6 {[%clk 0:00:13]} 20. Nxc5 {[%clk 0:00:38]}  Bd6 {[%clk 0:00:11]} 21. Ne4 {[%clk 0:00:33]}  Bb8 {[%clk 0:00:10]} 22. h3 {[%clk 0:00:30]}  h6 {[%clk 0:00:10]} 23. Rc5 {[%clk 0:00:26]}  Qd7 {[%clk 0:00:10]} 24. Qc1 {[%clk 0:00:19]}  Rfe8 {[%clk 0:00:09]} 25. Bxh6 {[%clk 0:00:10]}  Bxe4 {[%clk 0:00:10]} 26. dxe4 {[%clk 0:00:10]}  gxh6 {[%clk 0:00:09]} 27. Qxh6 {[%clk 0:00:09]}  Re6 {[%clk 0:00:10]} 28. Rg5+ {[%clk 0:00:07]}  Rg6 {[%clk 0:00:09]} 29. Rxg6+ {[%clk 0:00:06]}  fxg6 {[%clk 0:00:10]} 30. Qxg6+ {[%clk 0:00:07]}  Kf8 {[%clk 0:00:09]} 31. Ng5 {[%clk 0:00:06]}  Ne5 {[%clk 0:00:09]} 32. Qf6+ {[%clk 0:00:03]}  Ke8 {[%clk 0:00:08]} 0-1


[Site "https://www.chess.com"]

[Event "Titled Tuesday Blitz March 28 Late 2023"]
[White "morozcoma"]
[Black "Romkachess"]
[WhiteElo "2263"]
[BlackElo "2500"]
[Result "0-1"]
[Round "02"]
[TimeControl "180+2"]
[Date "2023.03.28"]
[WhiteClock "0:00:02"]
[BlackClock "0:00:12"]

1. e4 {[%clk 0:03:00]}  c5 {[%clk 0:02:58]} 2. Nf3 {[%clk 0:02:59]}  d6 {[%clk 0:02:58]} 3. Nc3 {[%clk 0:02:59]}  Nf6 {[%clk 0:02:58]} 4. Bc4 {[%clk 0:02:59]}  e6 {[%clk 0:02:58]} 5. d4 {[%clk 0:02:59]}  cxd4 {[%clk 0:02:58]} 6. Nxd4 {[%clk 0:03:00]}  a6 {[%clk 0:02:59]} 7. Bb3 {[%clk 0:03:00]}  Be7 {[%clk 0:02:59]} 8. O-O {[%clk 0:03:00]}  O-O {[%clk 0:02:59]} 9. Be3 {[%clk 0:03:00]}  Nc6 {[%clk 0:03:00]} 10. f4 {[%clk 0:03:00]}  Bd7 {[%clk 0:02:59]} 11. f5 {[%clk 0:03:00]}  Nxd4 {[%clk 0:02:57]} 12. Bxd4 {[%clk 0:03:00]}  e5 {[%clk 0:02:58]} 13. Be3 {[%clk 0:03:00]}  Bc6 {[%clk 0:02:57]} 14. Qd3 {[%clk 0:02:55]}  Rc8 {[%clk 0:02:54]} 15. Rad1 {[%clk 0:02:55]}  b5 {[%clk 0:02:51]} 16. Bg5 {[%clk 0:02:54]}  b4 {[%clk 0:02:27]} 17. Bxf6 {[%clk 0:02:49]}  bxc3 {[%clk 0:02:01]} 18. Bxe7 {[%clk 0:02:38]}  Qxe7 {[%clk 0:02:00]} 19. f6 {[%clk 0:02:33]}  gxf6 {[%clk 0:01:26]} 20. bxc3 {[%clk 0:02:24]}  Kh8 {[%clk 0:01:21]} 21. Rf3 {[%clk 0:01:54]}  Rg8 {[%clk 0:01:18]} 22. Bd5 {[%clk 0:01:38]}  Bxd5 {[%clk 0:00:33]} 23. Qxd5 {[%clk 0:01:39]}  Rg4 {[%clk 0:00:19]} 24. Rdf1 {[%clk 0:01:35]}  Rcg8 {[%clk 0:00:17]} 25. g3 {[%clk 0:01:34]}  R4g6 {[%clk 0:00:18]} 26. Rd1 {[%clk 0:01:32]}  Rd8 {[%clk 0:00:17]} 27. Rfd3 {[%clk 0:01:32]}  Kg7 {[%clk 0:00:17]} 28. Qc6 {[%clk 0:01:29]}  h5 {[%clk 0:00:15]} 29. Rxd6 {[%clk 0:01:29]}  Rxd6 {[%clk 0:00:15]} 30. Qxd6 {[%clk 0:01:29]}  Qa7+ {[%clk 0:00:15]} 31. Kg2 {[%clk 0:01:24]}  h4 {[%clk 0:00:16]} 32. Qd3 {[%clk 0:01:15]}  hxg3 {[%clk 0:00:15]} 33. hxg3 {[%clk 0:01:16]}  a5 {[%clk 0:00:15]} 34. Rh1 {[%clk 0:01:14]}  Qc7 {[%clk 0:00:14]} 35. Qf3 {[%clk 0:01:12]}  Rg5 {[%clk 0:00:13]} 36. Rd1 {[%clk 0:01:03]}  Qc4 {[%clk 0:00:13]} 37. Rd6 {[%clk 0:00:49]}  Rg6 {[%clk 0:00:13]} 38. Qd3 {[%clk 0:00:41]}  Qxa2 {[%clk 0:00:13]} 39. c4 {[%clk 0:00:41]}  Qb2 {[%clk 0:00:11]} 40. c5 {[%clk 0:00:40]}  a4 {[%clk 0:00:12]} 41. Ra6 {[%clk 0:00:36]}  a3 {[%clk 0:00:11]} 42. Rxa3 {[%clk 0:00:36]}  Qc1 {[%clk 0:00:10]} 43. Qf3 {[%clk 0:00:04]}  Rh6 {[%clk 0:00:10]} 44. Qg4+ {[%clk 0:00:04]}  Kh7 {[%clk 0:00:09]} 45. Qf5+ {[%clk 0:00:05]}  Kg7 {[%clk 0:00:09]} 46. Qg4+ {[%clk 0:00:05]}  Rg6 {[%clk 0:00:10]} 47. Qf3 {[%clk 0:00:04]}  Qd2+ {[%clk 0:00:10]} 48. Qf2 {[%clk 0:00:05]}  Qd1 {[%clk 0:00:09]} 49. Rf3 {[%clk 0:00:05]}  Rh6 {[%clk 0:00:09]} 50. Qf1 {[%clk 0:00:05]}  Qxc2+ {[%clk 0:00:09]} 51. Qf2 {[%clk 0:00:06]}  Qc3 {[%clk 0:00:09]} 52. Rf5 {[%clk 0:00:06]}  Qc4 {[%clk 0:00:08]} 53. g4 {[%clk 0:00:04]}  Qxe4+ {[%clk 0:00:08]} 54. Qf3 {[%clk 0:00:05]}  Qc2+ {[%clk 0:00:08]} 55. Qf2 {[%clk 0:00:05]}  Qc4 {[%clk 0:00:08]} 56. Kg3 {[%clk 0:00:04]}  Rg6 {[%clk 0:00:09]} 57. g5 {[%clk 0:00:03]}  Rxg5+ {[%clk 0:00:09]} 58. Rxg5+ {[%clk 0:00:03]}  fxg5 {[%clk 0:00:10]} 59. Qe3 {[%clk 0:00:03]}  Qf4+ {[%clk 0:00:10]} 60. Qxf4 {[%clk 0:00:03]}  gxf4+ {[%clk 0:00:11]} 61. Kf3 {[%clk 0:00:04]}  Kf6 {[%clk 0:00:10]} 62. Ke4 {[%clk 0:00:04]}  Ke6 {[%clk 0:00:11]} 63. c6 {[%clk 0:00:02]}  f5+ {[%clk 0:00:12]} 0-1


[Site "https://www.chess.com"]

[Event "Titled Tuesday Blitz March 28 Late 2023"]
[White "Estrada Nieto, Julian"]
[Black "OKEKE, Isaac Chukwudalu"]
[WhiteFideId "5101018"]
[BlackFideId "8508526"]
[WhiteElo "2176"]
[BlackElo "2161"]
[Result "1-0"]
[Round "02"]
[TimeControl "180+2"]
[Date "2023.03.28"]
[WhiteClock "0:02:22"]
[BlackClock "0:01:46"]

1. e4 {[%clk 0:03:00]}  c5 {[%clk 0:02:59]} 2. Nf3 {[%clk 0:02:57]}  d6 {[%clk 0:02:59]} 3. Bb5+ {[%clk 0:02:57]}  Nd7 {[%clk 0:02:58]} 4. d4 {[%clk 0:02:54]}  cxd4 {[%clk 0:02:56]} 5. Qxd4 {[%clk 0:02:54]}  Nf6 {[%clk 0:02:52]} 6. Bg5 {[%clk 0:02:53]}  e6 {[%clk 0:02:45]} 7. Nc3 {[%clk 0:02:49]}  Be7 {[%clk 0:02:37]} 8. O-O-O {[%clk 0:02:44]}  Qc7 {[%clk 0:02:04]} 9. e5 {[%clk 0:02:36]}  dxe5 {[%clk 0:02:03]} 10. Nxe5 {[%clk 0:02:36]}  a6 {[%clk 0:01:51]} 11. Bxd7+ {[%clk 0:02:27]}  Bxd7 {[%clk 0:01:50]} 12. Bxf6 {[%clk 0:02:23]}  Bxf6 {[%clk 0:01:49]} 13. Qxd7+ {[%clk 0:02:22]}  Qxd7 {[%clk 0:01:46]} 14. Nxd7 {[%clk 0:02:22]} 1-0


[Site "https://www.chess.com"]

[Event "Titled Tuesday Blitz March 28 Late 2023"]
[White "Pires, Marcos Vinicius Torsani"]
[Black "Fernandez Sanchez, Mario Andres"]
[WhiteFideId "2118939"]
[BlackFideId "6501621"]
[WhiteElo "2273"]
[BlackElo "2050"]
[Result "0-1"]
[Round "02"]
[TimeControl "180+2"]
[Date "2023.03.28"]
[WhiteClock "0:00:19"]
[BlackClock "0:01:08"]

1. d4 {[%clk 0:03:00]}  d5 {[%clk 0:02:59]} 2. Bf4 {[%clk 0:03:00]}  Nf6 {[%clk 0:02:57]} 3. e3 {[%clk 0:02:59]}  c5 {[%clk 0:02:58]} 4. c3 {[%clk 0:02:59]}  Nc6 {[%clk 0:02:57]} 5. Nd2 {[%clk 0:02:59]}  Qb6 {[%clk 0:02:57]} 6. Qb3 {[%clk 0:02:59]}  c4 {[%clk 0:02:57]} 7. Qc2 {[%clk 0:02:59]}  g6 {[%clk 0:02:55]} 8. e4 {[%clk 0:02:59]}  e6 {[%clk 0:02:50]} 9. e5 {[%clk 0:03:00]}  Nd7 {[%clk 0:02:50]} 10. h4 {[%clk 0:03:00]}  h5 {[%clk 0:02:49]} 11. Ngf3 {[%clk 0:02:56]}  Qa5 {[%clk 0:02:45]} 12. Ng5 {[%clk 0:02:41]}  Ne7 {[%clk 0:02:32]} 13. b4 {[%clk 0:02:17]}  cxb3 {[%clk 0:02:22]} 14. Nxb3 {[%clk 0:02:17]}  Qa4 {[%clk 0:02:19]} 15. Bd3 {[%clk 0:02:15]}  Nf5 {[%clk 0:02:14]} 16. g3 {[%clk 0:01:52]}  b6 {[%clk 0:02:12]} 17. O-O {[%clk 0:01:51]}  Ba6 {[%clk 0:02:07]} 18. Bxa6 {[%clk 0:01:31]}  Qxa6 {[%clk 0:02:08]} 19. Nd2 {[%clk 0:01:28]}  Rc8 {[%clk 0:02:04]} 20. Rfc1 {[%clk 0:01:25]}  Nxd4 {[%clk 0:01:56]} 21. Qd1 {[%clk 0:01:20]}  Nf5 {[%clk 0:01:52]} 22. Ndf3 {[%clk 0:01:15]}  Ba3 {[%clk 0:01:51]} 23. Rc2 {[%clk 0:01:13]}  Qc4 {[%clk 0:01:37]} 24. Rb1 {[%clk 0:01:05]}  Be7 {[%clk 0:01:36]} 25. Rbc1 {[%clk 0:01:00]}  Nc5 {[%clk 0:01:34]} 26. Nd4 {[%clk 0:00:57]}  Nd3 {[%clk 0:01:27]} 27. Nxf5 {[%clk 0:00:35]}  gxf5 {[%clk 0:01:28]} 28. Rb1 {[%clk 0:00:31]}  Nxf4 {[%clk 0:01:27]} 29. gxf4 {[%clk 0:00:32]}  Qxf4 {[%clk 0:01:27]} 30. Qe2 {[%clk 0:00:26]}  Qxh4 {[%clk 0:01:25]} 31. Nf3 {[%clk 0:00:25]}  Qc4 {[%clk 0:01:21]} 32. Qe3 {[%clk 0:00:20]}  Rg8+ {[%clk 0:01:21]} 33. Kh1 {[%clk 0:00:20]}  Rg4 {[%clk 0:01:17]} 34. Nh2 {[%clk 0:00:20]}  Qe4+ {[%clk 0:01:15]} 35. Qxe4 {[%clk 0:00:20]}  Rxe4 {[%clk 0:01:15]} 36. Rd1 {[%clk 0:00:19]}  Bc5 {[%clk 0:01:15]} 37. Nf3 {[%clk 0:00:16]}  Rf4 {[%clk 0:01:13]} 38. Kg2 {[%clk 0:00:17]}  Ke7 {[%clk 0:01:12]} 39. Ne1 {[%clk 0:00:15]}  Rg8+ {[%clk 0:01:11]} 40. Kf1 {[%clk 0:00:16]}  h4 {[%clk 0:01:10]} 41. Ke2 {[%clk 0:00:16]}  Rxf2+ {[%clk 0:01:09]} 42. Kd3 {[%clk 0:00:16]}  Rxc2 {[%clk 0:01:09]} 43. Nxc2 {[%clk 0:00:17]}  h3 {[%clk 0:01:09]} 44. Nd4 {[%clk 0:00:17]}  Bxd4 {[%clk 0:01:09]} 45. Kxd4 {[%clk 0:00:17]}  h2 {[%clk 0:01:09]} 46. Rh1 {[%clk 0:00:17]}  Rg2 {[%clk 0:01:09]} 47. c4 {[%clk 0:00:18]}  dxc4 {[%clk 0:01:08]} 48. Kxc4 {[%clk 0:00:19]}  Rxa2 {[%clk 0:01:09]} 49. Kb5 {[%clk 0:00:19]}  f4 {[%clk 0:01:08]} 0-1


[Site "https://www.chess.com"]

[Event "Titled Tuesday Blitz March 28 Late 2023"]
[White "Hirneise, Jens"]
[Black "Torres Dominguez, David"]
[WhiteFideId "24614734"]
[BlackFideId "2220857"]
[WhiteElo "2345"]
[BlackElo "1999"]
[Result "1-0"]
[Round "02"]
[TimeControl "180+2"]
[Date "2023.03.28"]
[WhiteClock "0:01:56"]
[BlackClock "0:00:43"]

1. d4 {[%clk 0:03:00]}  e5 {[%clk 0:02:56]} 2. dxe5 {[%clk 0:03:00]}  d6 {[%clk 0:02:57]} 3. Nf3 {[%clk 0:02:50]}  Bg4 {[%clk 0:02:54]} 4. Nc3 {[%clk 0:02:40]}  Nc6 {[%clk 0:02:53]} 5. e6 {[%clk 0:02:35]}  fxe6 {[%clk 0:02:46]} 6. e4 {[%clk 0:02:35]}  Qd7 {[%clk 0:02:42]} 7. Be2 {[%clk 0:02:34]}  O-O-O {[%clk 0:02:40]} 8. Be3 {[%clk 0:02:33]}  Nf6 {[%clk 0:02:39]} 9. O-O {[%clk 0:02:31]}  e5 {[%clk 0:02:35]} 10. b4 {[%clk 0:02:28]}  Kb8 {[%clk 0:02:20]} 11. b5 {[%clk 0:02:24]}  Ne7 {[%clk 0:02:19]} 12. a4 {[%clk 0:02:23]}  Ng6 {[%clk 0:02:19]} 13. a5 {[%clk 0:02:21]}  Be7 {[%clk 0:02:18]} 14. b6 {[%clk 0:02:17]}  cxb6 {[%clk 0:02:09]} 15. axb6 {[%clk 0:02:17]}  a6 {[%clk 0:02:09]} 16. Bxa6 {[%clk 0:02:17]}  bxa6 {[%clk 0:02:08]} 17. Rxa6 {[%clk 0:02:17]}  Qc6 {[%clk 0:01:56]} 18. Qa1 {[%clk 0:02:12]}  Bxf3 {[%clk 0:01:51]} 19. b7 {[%clk 0:02:12]}  Kc7 {[%clk 0:00:49]} 20. Rxc6+ {[%clk 0:02:09]}  Kxc6 {[%clk 0:00:48]} 21. Qa4+ {[%clk 0:02:06]}  Kxb7 {[%clk 0:00:46]} 22. Rb1+ {[%clk 0:02:05]}  Kc7 {[%clk 0:00:45]} 23. Qa7+ {[%clk 0:02:00]}  Kc6 {[%clk 0:00:43]} 24. Rb6# {[%clk 0:01:56]} 1-0


[Site "https://www.chess.com"]

[Event "Titled Tuesday Blitz March 28 Late 2023"]
[White "Estremera Panos, Sergio"]
[Black "Koutlas, Nikolaos"]
[WhiteFideId "2200864"]
[BlackFideId "25827138"]
[WhiteElo "2253"]
[BlackElo "2215"]
[Result "0-1"]
[Round "02"]
[TimeControl "180+2"]
[Date "2023.03.28"]
[WhiteClock "0:00:31"]
[BlackClock "0:01:00"]

1. d4 {[%clk 0:02:40]}  f5 {[%clk 0:02:56]} 2. c4 {[%clk 0:02:41]}  Nf6 {[%clk 0:02:55]} 3. Nf3 {[%clk 0:02:41]}  g6 {[%clk 0:02:56]} 4. g3 {[%clk 0:02:42]}  Bg7 {[%clk 0:02:57]} 5. Bg2 {[%clk 0:02:42]}  O-O {[%clk 0:02:57]} 6. O-O {[%clk 0:02:43]}  d6 {[%clk 0:02:58]} 7. Nc3 {[%clk 0:02:41]}  e6 {[%clk 0:02:59]} 8. Qc2 {[%clk 0:02:39]}  a6 {[%clk 0:02:56]} 9. Re1 {[%clk 0:02:38]}  d5 {[%clk 0:02:53]} 10. Ne5 {[%clk 0:02:36]}  c6 {[%clk 0:02:52]} 11. Bf4 {[%clk 0:02:35]}  Ne4 {[%clk 0:02:48]} 12. f3 {[%clk 0:02:34]}  g5 {[%clk 0:02:44]} 13. fxe4 {[%clk 0:02:28]}  gxf4 {[%clk 0:02:42]} 14. exd5 {[%clk 0:02:28]}  cxd5 {[%clk 0:02:39]} 15. cxd5 {[%clk 0:02:28]}  Qb6 {[%clk 0:02:20]} 16. Qd2 {[%clk 0:02:17]}  Bxe5 {[%clk 0:02:19]} 17. gxf4 {[%clk 0:02:18]}  Qxd4+ {[%clk 0:02:18]} 18. Qxd4 {[%clk 0:02:15]}  Bxd4+ {[%clk 0:02:19]} 19. e3 {[%clk 0:02:16]}  Bf6 {[%clk 0:02:13]} 20. dxe6 {[%clk 0:02:16]}  Bxe6 {[%clk 0:02:11]} 21. Bxb7 {[%clk 0:02:16]}  Ra7 {[%clk 0:02:11]} 22. Bf3 {[%clk 0:02:15]}  Bxc3 {[%clk 0:02:07]} 23. bxc3 {[%clk 0:02:15]}  Nd7 {[%clk 0:02:05]} 24. Rad1 {[%clk 0:02:13]}  Nc5 {[%clk 0:02:05]} 25. Rd6 {[%clk 0:02:11]}  Bxa2 {[%clk 0:01:57]} 26. Ra1 {[%clk 0:02:08]}  Bf7 {[%clk 0:01:51]} 27. Rc6 {[%clk 0:02:08]}  Nb3 {[%clk 0:01:19]} 28. Raxa6 {[%clk 0:02:05]}  Re7 {[%clk 0:01:19]} 29. Kf2 {[%clk 0:02:01]}  Rfe8 {[%clk 0:01:18]} 30. c4 {[%clk 0:01:43]}  Rxe3 {[%clk 0:01:14]} 31. Rc7 {[%clk 0:01:27]}  Nd4 {[%clk 0:01:09]} 32. Bd5 {[%clk 0:00:48]}  Bxd5 {[%clk 0:01:08]} 33. cxd5 {[%clk 0:00:49]}  Re2+ {[%clk 0:01:09]} 34. Kg3 {[%clk 0:00:41]}  R8e3+ {[%clk 0:01:09]} 35. Kh4 {[%clk 0:00:41]}  Rxh2+ {[%clk 0:01:09]} 36. Kg5 {[%clk 0:00:41]}  Rg3+ {[%clk 0:01:09]} 37. Kf6 {[%clk 0:00:40]}  Rh6+ {[%clk 0:01:08]} 38. Ke5 {[%clk 0:00:40]}  Nf3+ {[%clk 0:01:07]} 39. Kxf5 {[%clk 0:00:40]}  Rxa6 {[%clk 0:01:06]} 40. Rc8+ {[%clk 0:00:36]}  Kg7 {[%clk 0:01:06]} 41. Rc7+ {[%clk 0:00:36]}  Kh6 {[%clk 0:01:06]} 42. Re7 {[%clk 0:00:31]}  Nd4+ {[%clk 0:01:00]} 43. Ke4 {[%clk 0:00:31]}  Re3+ {[%clk 0:01:00]} 0-1


[Site "https://www.chess.com"]

[Event "Titled Tuesday Blitz March 28 Late 2023"]
[White "Schmidt, Harald"]
[Black "Gasparyan, David"]
[WhiteFideId "4648358"]
[BlackFideId "13311980"]
[WhiteElo "2214"]
[BlackElo "2483"]
[Result "0-1"]
[Round "02"]
[TimeControl "180+2"]
[Date "2023.03.28"]
[WhiteClock "0:00:22"]
[BlackClock "0:00:56"]

1. e4 {[%clk 0:02:59]}  g6 {[%clk 0:02:56]} 2. h4 {[%clk 0:02:58]}  h6 {[%clk 0:02:54]} 3. h5 {[%clk 0:02:56]}  g5 {[%clk 0:02:54]} 4. d4 {[%clk 0:02:55]}  c5 {[%clk 0:02:53]} 5. d5 {[%clk 0:02:54]}  Bg7 {[%clk 0:02:52]} 6. Nc3 {[%clk 0:02:54]}  d6 {[%clk 0:02:52]} 7. f4 {[%clk 0:02:53]}  gxf4 {[%clk 0:02:52]} 8. Bxf4 {[%clk 0:02:52]}  Nf6 {[%clk 0:02:52]} 9. e5 {[%clk 0:02:48]}  dxe5 {[%clk 0:02:48]} 10. Bxe5 {[%clk 0:02:48]}  Nbd7 {[%clk 0:02:48]} 11. Bf4 {[%clk 0:02:42]}  a6 {[%clk 0:02:48]} 12. Be2 {[%clk 0:02:36]}  Qa5 {[%clk 0:02:45]} 13. Qd2 {[%clk 0:02:31]}  b5 {[%clk 0:02:42]} 14. Bf3 {[%clk 0:02:30]}  Bb7 {[%clk 0:02:42]} 15. d6 {[%clk 0:02:29]}  Bxf3 {[%clk 0:02:39]} 16. Nxf3 {[%clk 0:02:29]}  exd6 {[%clk 0:02:38]} 17. Bxd6 {[%clk 0:02:26]}  O-O-O {[%clk 0:02:37]} 18. O-O {[%clk 0:02:05]}  Qb6 {[%clk 0:02:29]} 19. Rad1 {[%clk 0:02:02]}  Nxh5 {[%clk 0:02:26]} 20. Qd5 {[%clk 0:01:59]}  Ndf6 {[%clk 0:02:20]} 21. Qf5+ {[%clk 0:01:56]}  Kb7 {[%clk 0:02:16]} 22. Be5 {[%clk 0:01:47]}  Qe6 {[%clk 0:02:12]} 23. Qxe6 {[%clk 0:01:39]}  fxe6 {[%clk 0:02:13]} 24. Ne2 {[%clk 0:01:29]}  Nd5 {[%clk 0:02:07]} 25. Bxg7 {[%clk 0:01:23]}  Nxg7 {[%clk 0:02:08]} 26. Ne5 {[%clk 0:01:20]}  Rhf8 {[%clk 0:02:01]} 27. Rxf8 {[%clk 0:01:15]}  Rxf8 {[%clk 0:02:01]} 28. Nd7 {[%clk 0:01:15]}  Rc8 {[%clk 0:01:59]} 29. Rf1 {[%clk 0:01:10]}  Nf5 {[%clk 0:01:58]} 30. Nf4 {[%clk 0:01:05]}  Nde3 {[%clk 0:01:54]} 31. Rf3 {[%clk 0:01:02]}  Rc7 {[%clk 0:01:38]} 32. Nxe6 {[%clk 0:01:01]}  Rxd7 {[%clk 0:01:38]} 33. Nxc5+ {[%clk 0:01:01]}  Kc6 {[%clk 0:01:38]} 34. Nxd7 {[%clk 0:01:02]}  Kxd7 {[%clk 0:01:38]} 35. g4 {[%clk 0:01:02]}  Nxg4 {[%clk 0:01:24]} 36. Rxf5 {[%clk 0:01:02]}  Ne3 {[%clk 0:01:24]} 37. Rf2 {[%clk 0:00:59]}  Kc6 {[%clk 0:01:22]} 38. Re2 {[%clk 0:00:59]}  Nc4 {[%clk 0:01:20]} 39. b3 {[%clk 0:00:58]}  Nd6 {[%clk 0:01:19]} 40. Kf2 {[%clk 0:00:56]}  Kd5 {[%clk 0:01:19]} 41. Ke3 {[%clk 0:00:54]}  h5 {[%clk 0:01:16]} 42. Kd3 {[%clk 0:00:52]}  h4 {[%clk 0:01:13]} 43. Rf2 {[%clk 0:00:43]}  h3 {[%clk 0:01:02]} 44. Rh2 {[%clk 0:00:42]}  Ne4 {[%clk 0:01:02]} 45. Ke3 {[%clk 0:00:35]}  Ng5 {[%clk 0:01:01]} 46. c3 {[%clk 0:00:32]}  Ke5 {[%clk 0:01:00]} 47. c4 {[%clk 0:00:31]}  bxc4 {[%clk 0:00:59]} 48. bxc4 {[%clk 0:00:31]}  Kd6 {[%clk 0:01:00]} 49. Kf4 {[%clk 0:00:28]}  Ne6+ {[%clk 0:00:59]} 50. Ke4 {[%clk 0:00:27]}  Kc5 {[%clk 0:00:58]} 51. Rxh3 {[%clk 0:00:26]}  Ng5+ {[%clk 0:00:58]} 52. Kd3 {[%clk 0:00:25]}  Nxh3 {[%clk 0:00:59]} 53. Kc3 {[%clk 0:00:24]}  Nf4 {[%clk 0:00:59]} 54. Kb3 {[%clk 0:00:24]}  Ne6 {[%clk 0:00:56]} 55. Ka4 {[%clk 0:00:24]}  Kb6 {[%clk 0:00:54]} 56. Kb4 {[%clk 0:00:23]}  Nc5 {[%clk 0:00:55]} 57. a3 {[%clk 0:00:22]}  a5+ {[%clk 0:00:55]} 58. Kc3 {[%clk 0:00:22]}  Kc6 {[%clk 0:00:55]} 59. Kd4 {[%clk 0:00:22]}  Kd6 {[%clk 0:00:56]} 0-1


[Site "https://www.chess.com"]

[Event "Titled Tuesday Blitz March 28 Late 2023"]
[White "Mendez Machado, Andre"]
[Black "Sohal, Tanraj"]
[WhiteFideId "6603793"]
[BlackFideId "2608499"]
[WhiteElo "1984"]
[BlackElo "2213"]
[Result "0-1"]
[Round "02"]
[TimeControl "180+2"]
[Date "2023.03.28"]
[WhiteClock "0:00:10"]
[BlackClock "0:00:51"]

1. e4 {[%clk 0:03:00]}  c6 {[%clk 0:02:34]} 2. d4 {[%clk 0:02:59]}  d5 {[%clk 0:02:35]} 3. f3 {[%clk 0:02:59]}  e5 {[%clk 0:02:34]} 4. dxe5 {[%clk 0:02:58]}  dxe4 {[%clk 0:02:34]} 5. Qxd8+ {[%clk 0:02:55]}  Kxd8 {[%clk 0:02:35]} 6. fxe4 {[%clk 0:02:55]}  Nd7 {[%clk 0:02:35]} 7. Nf3 {[%clk 0:02:55]}  Bb4+ {[%clk 0:02:35]} 8. Bd2 {[%clk 0:02:48]}  Bxd2+ {[%clk 0:02:32]} 9. Nbxd2 {[%clk 0:02:49]}  Ne7 {[%clk 0:02:33]} 10. Nc4 {[%clk 0:02:35]}  Ng6 {[%clk 0:02:17]} 11. O-O-O {[%clk 0:02:31]}  Kc7 {[%clk 0:02:17]} 12. a4 {[%clk 0:02:14]}  Re8 {[%clk 0:02:14]} 13. Nd6 {[%clk 0:02:04]}  Re7 {[%clk 0:02:10]} 14. Nf5 {[%clk 0:02:04]}  Re8 {[%clk 0:02:03]} 15. Nxg7 {[%clk 0:02:04]}  Rg8 {[%clk 0:02:03]} 16. Nf5 {[%clk 0:01:44]}  Ndxe5 {[%clk 0:02:01]} 17. Nh6 {[%clk 0:01:11]}  Re8 {[%clk 0:01:53]} 18. Be2 {[%clk 0:01:05]}  Be6 {[%clk 0:01:52]} 19. Rhf1 {[%clk 0:01:03]}  a5 {[%clk 0:01:50]} 20. Nxe5 {[%clk 0:01:00]}  Nxe5 {[%clk 0:01:50]} 21. Bh5 {[%clk 0:01:00]}  Re7 {[%clk 0:01:50]} 22. Rf2 {[%clk 0:00:57]}  Rd8 {[%clk 0:01:45]} 23. Rdf1 {[%clk 0:00:52]}  Rd4 {[%clk 0:01:45]} 24. Nxf7 {[%clk 0:00:49]}  Bxf7 {[%clk 0:01:44]} 25. Bxf7 {[%clk 0:00:50]}  Rxa4 {[%clk 0:01:43]} 26. Bg8 {[%clk 0:00:37]}  Rxe4 {[%clk 0:01:32]} 27. h3 {[%clk 0:00:32]}  a4 {[%clk 0:01:28]} 28. Kb1 {[%clk 0:00:32]}  Rg7 {[%clk 0:01:27]} 29. Ba2 {[%clk 0:00:28]}  b5 {[%clk 0:01:23]} 30. Be6 {[%clk 0:00:26]}  Kd6 {[%clk 0:01:23]} 31. Bf5 {[%clk 0:00:26]}  Rd4 {[%clk 0:01:23]} 32. c3 {[%clk 0:00:26]}  Rh4 {[%clk 0:01:22]} 33. Rd2+ {[%clk 0:00:24]}  Kc5 {[%clk 0:01:22]} 34. Re1 {[%clk 0:00:20]}  Nc4 {[%clk 0:01:23]} 35. Rde2 {[%clk 0:00:14]}  Rf4 {[%clk 0:01:16]} 36. Bd3 {[%clk 0:00:14]}  Nd6 {[%clk 0:01:07]} 37. Re5+ {[%clk 0:00:14]}  Kb6 {[%clk 0:01:06]} 38. Re6 {[%clk 0:00:14]}  Kc7 {[%clk 0:00:58]} 39. Be2 {[%clk 0:00:13]}  Rxg2 {[%clk 0:00:57]} 40. Bg4 {[%clk 0:00:13]}  Rff2 {[%clk 0:00:56]} 41. Re7+ {[%clk 0:00:10]}  Kb6 {[%clk 0:00:56]} 42. R1e2 {[%clk 0:00:10]}  Nc4 {[%clk 0:00:55]} 43. Rxf2 {[%clk 0:00:10]}  Rxf2 {[%clk 0:00:54]} 44. Rxh7 {[%clk 0:00:10]}  Rxb2+ {[%clk 0:00:54]} 45. Kc1 {[%clk 0:00:11]}  a3 {[%clk 0:00:55]} 46. Bf5 {[%clk 0:00:10]}  Rf2 {[%clk 0:00:54]} 47. Bb1 {[%clk 0:00:10]}  a2 {[%clk 0:00:54]} 48. Bxa2 {[%clk 0:00:10]}  Rxa2 {[%clk 0:00:55]} 49. h4 {[%clk 0:00:11]}  Rh2 {[%clk 0:00:53]} 50. h5 {[%clk 0:00:12]}  Nd6 {[%clk 0:00:51]} 51. h6 {[%clk 0:00:10]}  Nf5 {[%clk 0:00:51]} 0-1


[Site "https://www.chess.com"]